[Event "*** Titled Tuesday Blitz"]
[Site "Chess.com"]
[Date "2021.03.16"]
[Round "1"]
[White "RobPeresian"]
[Black "GoltsevDmitry2000"]
[Result "0-1"]
[WhiteElo "2434"]
[BlackElo "2824"]
[TimeControl "180+1"]
[EndTime "10:07:11 PDT"]
[Termination "GoltsevDmitry2000 won on time"]

1. Nf3 {[%clk 0:02:59.3]} 1... d5 {[%clk 0:02:48.9]} 2. d4 {[%clk 0:02:58.5]}
2... c6 {[%clk 0:02:49.3]} 3. c4 {[%clk 0:02:54.1]} 3... Nf6 {[%clk 0:02:49.2]}
4. Nc3 {[%clk 0:02:53.6]} 4... dxc4 {[%clk 0:02:47.5]} 5. e3 {[%clk 0:02:53.4]}
5... b5 {[%clk 0:02:44.4]} 6. a4 {[%clk 0:02:53.4]} 6... b4 {[%clk 0:02:27.1]}
7. Na2 {[%clk 0:02:51.5]} 7... a5 {[%clk 0:02:20.1]} 8. Bxc4 {[%clk 0:02:44.2]}
8... e6 {[%clk 0:02:21]} 9. O-O {[%clk 0:02:40.3]} 9... Be7 {[%clk 0:02:21.5]}
10. Qe2 {[%clk 0:02:39.4]} 10... O-O {[%clk 0:02:19]} 11. Bd2 {[%clk 0:02:38.3]}
11... Bb7 {[%clk 0:02:12.3]} 12. Rfd1 {[%clk 0:02:37.8]} 12... Nbd7 {[%clk
0:02:09.4]} 13. Nc1 {[%clk 0:02:37.2]} 13... Qb6 {[%clk 0:02:08.2]} 14. Nb3
{[%clk 0:02:36]} 14... c5 {[%clk 0:02:07.8]} 15. Be1 {[%clk 0:02:30.9]} 15...
Rfd8 {[%clk 0:02:05.4]} 16. Rac1 {[%clk 0:02:29.7]} 16... Rac8 {[%clk
0:02:01.6]} 17. Bb5 {[%clk 0:02:29.7]} 17... cxd4 {[%clk 0:02:00.2]} 18. Nfxd4
{[%clk 0:02:29.6]} 18... Rxc1 {[%clk 0:01:58]} 19. Rxc1 {[%clk 0:02:28.9]} 19...
Nc5 {[%clk 0:01:57.7]} 20. f3 {[%clk 0:02:23.5]} 20... e5 {[%clk 0:01:54.7]} 21.
Nxc5 {[%clk 0:02:08.5]} 21... Bxc5 {[%clk 0:01:52.5]} 22. Nf5 {[%clk 0:02:05.7]}
22... g6 {[%clk 0:01:46]} 23. Qc4 {[%clk 0:01:54.4]} 23... Bxe3+ {[%clk
0:01:42]} 24. Nxe3 {[%clk 0:01:54.3]} 24... Qxe3+ {[%clk 0:01:42.9]} 25. Bf2
{[%clk 0:01:54.9]} 25... Qd2 {[%clk 0:01:38.1]} 26. Re1 {[%clk 0:01:36]} 26...
e4 {[%clk 0:01:32.1]} 27. Qc7 {[%clk 0:01:18.1]} 27... Ba8 {[%clk 0:01:25.8]}
28. Bc4 {[%clk 0:01:05.4]} 28... Rf8 {[%clk 0:01:12.9]} 29. Qxa5 {[%clk
0:00:43.9]} 29... exf3 {[%clk 0:01:10]} 30. gxf3 {[%clk 0:00:14.5]} 30... Bxf3
{[%clk 0:01:10.9]} 31. Qe5 {[%clk 0:00:11]} 31... Ng4 {[%clk 0:00:57]} 32. Qg3
{[%clk 0:00:04.8]} 32... Nxf2 {[%clk 0:00:34.6]} 33. Qxf2 {[%clk 0:00:02.5]}
33... Qg5+ {[%clk 0:00:34.6]} 34. Qg3 {[%clk 0:00:02.4]} 34... Qc5+ {[%clk
0:00:33.6]} 35. Qf2 {[%clk 0:00:01.8]} 35... Qxc4 {[%clk 0:00:31.5]} 36. Qxf3
{[%clk 0:00:01.8]} 36... Qc2 {[%clk 0:00:30.5]} 37. Qf2 {[%clk 0:00:01.5]} 37...
Qxa4 {[%clk 0:00:30.3]} 0-1

[Event "*** Titled Tuesday Blitz"]
[Site "Chess.com"]
[Date "2021.03.16"]
[Round "1"]
[White "northridgehawk"]
[Black "Volodar_Murzin"]
[Result "0-1"]
[WhiteElo "2351"]
[BlackElo "2667"]
[TimeControl "180+1"]
[EndTime "10:07:19 PDT"]
[Termination "Volodar_Murzin won by resignation"]

1. e4 {[%clk 0:03:00.3]} 1... c5 {[%clk 0:02:58.3]} 2. Nf3 {[%clk 0:03:00.3]}
2... d6 {[%clk 0:02:58.3]} 3. d4 {[%clk 0:03:00.8]} 3... cxd4 {[%clk 0:02:55.8]}
4. Nxd4 {[%clk 0:03:01.7]} 4... Nf6 {[%clk 0:02:55.4]} 5. Nc3 {[%clk 0:03:02.2]}
5... a6 {[%clk 0:02:52.7]} 6. h3 {[%clk 0:03:02.5]} 6... b5 {[%clk 0:02:47]} 7.
g4 {[%clk 0:03:00.1]} 7... Bb7 {[%clk 0:02:44.9]} 8. Bg2 {[%clk 0:03:00.3]} 8...
Nc6 {[%clk 0:02:44.4]} 9. O-O {[%clk 0:02:53.9]} 9... Nxd4 {[%clk 0:02:23]} 10.
Qxd4 {[%clk 0:02:53.5]} 10... e5 {[%clk 0:02:22.2]} 11. Qd3 {[%clk 0:02:52.3]}
11... Be7 {[%clk 0:02:21.4]} 12. a4 {[%clk 0:02:47.9]} 12... b4 {[%clk
0:02:19.9]} 13. Nd5 {[%clk 0:02:47.9]} 13... Bxd5 {[%clk 0:02:04.4]} 14. exd5
{[%clk 0:02:48.8]} 14... O-O {[%clk 0:02:03.7]} 15. Be3 {[%clk 0:02:40.6]} 15...
Nd7 {[%clk 0:01:52.8]} 16. a5 {[%clk 0:02:10.2]} 16... Bg5 {[%clk 0:01:49.9]}
17. Ra4 {[%clk 0:02:06.3]} 17... Bxe3 {[%clk 0:01:46.3]} 18. Qxe3 {[%clk
0:02:07.2]} 18... Rb8 {[%clk 0:01:38]} 19. Qe2 {[%clk 0:01:57.2]} 19... Nc5
{[%clk 0:01:35.2]} 20. Raa1 {[%clk 0:01:56.6]} 20... Rb5 {[%clk 0:01:29.8]} 21.
Qc4 {[%clk 0:01:53.5]} 21... b3 {[%clk 0:01:26.2]} 22. cxb3 {[%clk 0:01:36.5]}
22... Rxb3 {[%clk 0:01:24.8]} 23. f4 {[%clk 0:01:34]} 23... e4 {[%clk
0:01:15.9]} 24. Rf2 {[%clk 0:01:19.8]} 24... Qb8 {[%clk 0:01:03.3]} 25. Bxe4
{[%clk 0:01:07.1]} 25... Rb4 {[%clk 0:01:01.2]} 26. Bxh7+ {[%clk 0:01:03]} 26...
Kxh7 {[%clk 0:00:58.7]} 27. Qc2+ {[%clk 0:01:03.9]} 27... Kg8 {[%clk 0:00:58]}
28. f5 {[%clk 0:01:02.2]} 28... Re8 {[%clk 0:00:56]} 29. f6 {[%clk 0:01:01.4]}
29... g6 {[%clk 0:00:39.7]} 30. Qd2 {[%clk 0:00:58.8]} 30... Kh7 {[%clk
0:00:30.6]} 31. Rf5 {[%clk 0:00:50.9]} 31... Ne4 {[%clk 0:00:22.4]} 32. Qe1
{[%clk 0:00:47.8]} 32... Rh8 {[%clk 0:00:11]} 33. Rf4 {[%clk 0:00:43.7]} 33...
Qa7+ {[%clk 0:00:05.2]} 34. Kg2 {[%clk 0:00:42.6]} 34... Rxb2+ {[%clk
0:00:04.4]} 35. Kf3 {[%clk 0:00:32.8]} 35... Rf2+ {[%clk 0:00:03]} 36. Kxe4
{[%clk 0:00:32.7]} 36... Re8+ {[%clk 0:00:03.6]} 37. Kd3 {[%clk 0:00:32.8]}
37... Rxe1 {[%clk 0:00:04.2]} 38. Rxe1 {[%clk 0:00:31.6]} 38... Rxf4 {[%clk
0:00:04.5]} 39. Re7 {[%clk 0:00:31.4]} 39... Qd4+ {[%clk 0:00:05.1]} 40. Kc2
{[%clk 0:00:31.7]} 40... Rf2+ {[%clk 0:00:05.8]} 41. Kb3 {[%clk 0:00:32.4]}
41... Rb2+ {[%clk 0:00:05.9]} 0-1

[Event "*** Titled Tuesday Blitz"]
[Site "Chess.com"]
[Date "2021.03.16"]
[Round "1"]
[White "JiiHart"]
[Black "bazar-wokzal"]
[Result "0-1"]
[WhiteElo "2062"]
[BlackElo "2502"]
[TimeControl "180+1"]
[EndTime "10:07:21 PDT"]
[Termination "bazar-wokzal won on time"]

1. e4 {[%clk 0:03:00.9]} 1... Nc6 {[%clk 0:02:53.9]} 2. Nf3 {[%clk 0:03:00.1]}
2... d5 {[%clk 0:02:53.4]} 3. exd5 {[%clk 0:02:58.9]} 3... Qxd5 {[%clk
0:02:54.2]} 4. Nc3 {[%clk 0:02:58.7]} 4... Qa5 {[%clk 0:02:54.8]} 5. Bb5 {[%clk
0:02:51]} 5... Nf6 {[%clk 0:02:53.2]} 6. O-O {[%clk 0:02:45.8]} 6... Bd7 {[%clk
0:02:35.2]} 7. d3 {[%clk 0:02:32.2]} 7... a6 {[%clk 0:02:34.2]} 8. Bc4 {[%clk
0:02:24.2]} 8... Bg4 {[%clk 0:02:32.4]} 9. h3 {[%clk 0:02:14.7]} 9... Bh5 {[%clk
0:02:32]} 10. d4 {[%clk 0:01:52.2]} 10... O-O-O {[%clk 0:02:22.5]} 11. Be3
{[%clk 0:01:42.7]} 11... e5 {[%clk 0:02:13.5]} 12. Be2 {[%clk 0:01:28.4]} 12...
Bxf3 {[%clk 0:02:04.5]} 13. Bxf3 {[%clk 0:01:27]} 13... exd4 {[%clk 0:02:04.3]}
14. Bxc6 {[%clk 0:01:24.4]} 14... bxc6 {[%clk 0:02:04.2]} 15. Bxd4 {[%clk
0:01:18.7]} 15... c5 {[%clk 0:02:04.2]} 16. Qf3 {[%clk 0:01:15.7]} 16... cxd4
{[%clk 0:01:58.5]} 17. Rad1 {[%clk 0:00:59.7]} 17... Bc5 {[%clk 0:01:38.2]} 18.
a3 {[%clk 0:00:53.5]} 18... Bb6 {[%clk 0:01:25.4]} 19. b4 {[%clk 0:00:51.9]}
19... Qh5 {[%clk 0:01:16.4]} 20. Qa8+ {[%clk 0:00:47.5]} 20... Kd7 {[%clk
0:01:15.8]} 21. Qxa6 {[%clk 0:00:48.1]} 21... Rhe8 {[%clk 0:01:04.1]} 22. a4
{[%clk 0:00:13.4]} 22... Ra8 {[%clk 0:00:48.7]} 23. Qc4 {[%clk 0:00:09]} 23...
Ke7 {[%clk 0:00:31.8]} 24. Nb5 {[%clk 0:00:06.2]} 24... Qd5 {[%clk 0:00:18.8]}
25. Qxd5 {[%clk 0:00:04.3]} 25... Nxd5 {[%clk 0:00:18.3]} 26. a5 {[%clk
0:00:04.7]} 26... Ba7 {[%clk 0:00:17.5]} 27. Nxd4 {[%clk 0:00:04.5]} 27... Bxd4
{[%clk 0:00:17.2]} 28. Rxd4 {[%clk 0:00:03.6]} 28... c6 {[%clk 0:00:17.7]} 29.
Re1+ {[%clk 0:00:03.5]} 29... Kf6 {[%clk 0:00:16.8]} 30. Rdd1 {[%clk 0:00:02.5]}
30... Rxe1+ {[%clk 0:00:15.8]} 31. Rxe1 {[%clk 0:00:03.4]} 31... Nxb4 {[%clk
0:00:16.4]} 32. c3 {[%clk 0:00:03.6]} 32... Nd5 {[%clk 0:00:16.3]} 33. Rc1
{[%clk 0:00:02.8]} 33... Rxa5 {[%clk 0:00:15.9]} 34. c4 {[%clk 0:00:03.4]} 34...
Rc5 {[%clk 0:00:16.3]} 35. g3 {[%clk 0:00:03.8]} 35... Nb6 {[%clk 0:00:16.5]}
36. Kg2 {[%clk 0:00:04]} 36... Rxc4 {[%clk 0:00:16.7]} 37. Rd1 {[%clk
0:00:04.5]} 37... Nd5 {[%clk 0:00:17.2]} 0-1

[Event "*** Titled Tuesday Blitz"]
[Site "Chess.com"]
[Date "2021.03.16"]
[Round "1"]
[White "SergeyShtyka"]
[Black "GMKrikor"]
[Result "0-1"]
[WhiteElo "2405"]
[BlackElo "2761"]
[TimeControl "180+1"]
[EndTime "10:07:25 PDT"]
[Termination "GMKrikor won by resignation"]

1. e4 {[%clk 0:02:59.1]} 1... c5 {[%clk 0:02:59.3]} 2. Nf3 {[%clk 0:02:58.6]}
2... d6 {[%clk 0:02:44.2]} 3. d4 {[%clk 0:02:58.2]} 3... cxd4 {[%clk 0:02:43.3]}
4. Nxd4 {[%clk 0:02:59.1]} 4... Nf6 {[%clk 0:02:41.2]} 5. Nc3 {[%clk 0:02:59.3]}
5... a6 {[%clk 0:02:41.2]} 6. Bc4 {[%clk 0:02:58.4]} 6... e6 {[%clk 0:02:39.9]}
7. O-O {[%clk 0:02:58.1]} 7... Be7 {[%clk 0:02:33.5]} 8. Be3 {[%clk 0:02:57.6]}
8... O-O {[%clk 0:02:32.3]} 9. Bd3 {[%clk 0:02:56.6]} 9... b5 {[%clk 0:02:24.9]}
10. a3 {[%clk 0:02:56]} 10... Bb7 {[%clk 0:02:24.8]} 11. f4 {[%clk 0:02:55.8]}
11... Nbd7 {[%clk 0:02:24.4]} 12. Qf3 {[%clk 0:02:55.6]} 12... Rc8 {[%clk
0:02:20.3]} 13. Rae1 {[%clk 0:02:54.8]} 13... Re8 {[%clk 0:01:50.9]} 14. Kh1
{[%clk 0:02:54.4]} 14... Bf8 {[%clk 0:01:50]} 15. Bf2 {[%clk 0:02:50.5]} 15...
g6 {[%clk 0:01:32.8]} 16. Bh4 {[%clk 0:02:28.2]} 16... Bg7 {[%clk 0:01:28]} 17.
Qh3 {[%clk 0:02:07.9]} 17... e5 {[%clk 0:01:17.4]} 18. fxe5 {[%clk 0:01:44.3]}
18... dxe5 {[%clk 0:01:18.3]} 19. Nf3 {[%clk 0:01:38.3]} 19... Qb6 {[%clk
0:01:00.5]} 20. Bf2 {[%clk 0:01:31.8]} 20... Qe6 {[%clk 0:00:54.6]} 21. Qxe6
{[%clk 0:01:29.7]} 21... Rxe6 {[%clk 0:00:55.5]} 22. h3 {[%clk 0:01:09.2]} 22...
h6 {[%clk 0:00:48.3]} 23. Bg3 {[%clk 0:01:08.2]} 23... Nh5 {[%clk 0:00:39.9]}
24. Bh2 {[%clk 0:01:07.8]} 24... Nf4 {[%clk 0:00:29.4]} 25. Nxe5 {[%clk
0:00:58.9]} 25... Nxd3 {[%clk 0:00:23.2]} 26. Nxd3 {[%clk 0:00:53.9]} 26... Bxc3
{[%clk 0:00:21.4]} 27. bxc3 {[%clk 0:00:53.6]} 27... Rxc3 {[%clk 0:00:15.8]} 28.
a4 {[%clk 0:00:29.8]} 28... Rxc2 {[%clk 0:00:15.3]} 29. axb5 {[%clk 0:00:28.8]}
29... axb5 {[%clk 0:00:16.2]} 30. e5 {[%clk 0:00:28.7]} 30... Bxg2+ {[%clk
0:00:15]} 31. Kg1 {[%clk 0:00:28.8]} 31... Bxf1 {[%clk 0:00:15.3]} 32. Rxf1
{[%clk 0:00:29.3]} 32... g5 {[%clk 0:00:13.6]} 33. Nb4 {[%clk 0:00:29]} 33...
Rc3 {[%clk 0:00:12.4]} 34. Nd5 {[%clk 0:00:28.8]} 34... Rxh3 {[%clk 0:00:12.1]}
35. Kg2 {[%clk 0:00:28.6]} 35... Rxh2+ {[%clk 0:00:12.3]} 36. Kxh2 {[%clk
0:00:28]} 36... Rxe5 {[%clk 0:00:13]} 37. Rd1 {[%clk 0:00:21.2]} 37... Kg7
{[%clk 0:00:12.4]} 38. Kg3 {[%clk 0:00:20.9]} 38... Nf6 {[%clk 0:00:12.1]} 39.
Nc3 {[%clk 0:00:19.9]} 39... Ne4+ {[%clk 0:00:11.6]} 40. Nxe4 {[%clk 0:00:19.9]}
40... Rxe4 {[%clk 0:00:12.5]} 41. Rb1 {[%clk 0:00:20.1]} 41... b4 {[%clk
0:00:12.6]} 42. Kf3 {[%clk 0:00:20.7]} 42... Rf4+ {[%clk 0:00:13]} 43. Kg3
{[%clk 0:00:21.3]} 43... Kg6 {[%clk 0:00:13.9]} 44. Rb3 {[%clk 0:00:20.6]} 44...
f6 {[%clk 0:00:14.3]} 45. Kh3 {[%clk 0:00:21.1]} 45... h5 {[%clk 0:00:14.7]} 46.
Kg3 {[%clk 0:00:21.5]} 46... h4+ {[%clk 0:00:15.2]} 0-1

[Event "*** Titled Tuesday Blitz"]
[Site "Chess.com"]
[Date "2021.03.16"]
[Round "1"]
[White "Soltan49"]
[Black "SchmakAttack"]
[Result "0-1"]
[WhiteElo "2198"]
[BlackElo "2543"]
[TimeControl "180+1"]
[EndTime "10:07:26 PDT"]
[Termination "SchmakAttack won on time"]

1. d4 {[%clk 0:02:58.5]} 1... Nf6 {[%clk 0:02:58.2]} 2. Nf3 {[%clk 0:02:57.7]}
2... d5 {[%clk 0:02:56.8]} 3. c4 {[%clk 0:02:56.3]} 3... e6 {[%clk 0:02:56.8]}
4. Nc3 {[%clk 0:02:56.8]} 4... dxc4 {[%clk 0:02:56.2]} 5. e3 {[%clk 0:02:54.8]}
5... a6 {[%clk 0:02:55.4]} 6. a4 {[%clk 0:02:53.2]} 6... c5 {[%clk 0:02:54.3]}
7. Bxc4 {[%clk 0:02:52.3]} 7... Nc6 {[%clk 0:02:54.7]} 8. O-O {[%clk 0:02:47.9]}
8... Be7 {[%clk 0:02:54.4]} 9. Qd3 {[%clk 0:01:56]} 9... cxd4 {[%clk 0:02:44.3]}
10. exd4 {[%clk 0:01:56.9]} 10... O-O {[%clk 0:02:36.4]} 11. Rd1 {[%clk
0:01:55.6]} 11... b6 {[%clk 0:02:12.4]} 12. Bf4 {[%clk 0:01:55.3]} 12... Bb7
{[%clk 0:02:11]} 13. h3 {[%clk 0:01:55.4]} 13... Rc8 {[%clk 0:02:06.9]} 14. Rac1
{[%clk 0:01:42]} 14... Nb4 {[%clk 0:02:00.2]} 15. Qe2 {[%clk 0:01:34.8]} 15...
Nfd5 {[%clk 0:01:59.9]} 16. Nxd5 {[%clk 0:01:24.4]} 16... Bxd5 {[%clk
0:01:43.7]} 17. Bxa6 {[%clk 0:01:19]} 17... Nxa6 {[%clk 0:01:25.6]} 18. Qxa6
{[%clk 0:01:17.3]} 18... Ra8 {[%clk 0:00:57.7]} 19. Qe2 {[%clk 0:01:09.4]} 19...
Rxa4 {[%clk 0:00:57.7]} 20. Bc7 {[%clk 0:01:09.3]} 20... Qa8 {[%clk 0:00:48.6]}
21. Bxb6 {[%clk 0:01:06.1]} 21... Rb8 {[%clk 0:00:45.2]} 22. Bc5 {[%clk
0:01:03.2]} 22... Bxc5 {[%clk 0:00:44.9]} 23. dxc5 {[%clk 0:01:04.1]} 23... Rab4
{[%clk 0:00:44.2]} 24. Rd2 {[%clk 0:00:53.1]} 24... Rf4 {[%clk 0:00:28.3]} 25.
Ne1 {[%clk 0:00:41.7]} 25... h6 {[%clk 0:00:22.3]} 26. Qe5 {[%clk 0:00:25.4]}
26... Rf5 {[%clk 0:00:17.7]} 27. Qc7 {[%clk 0:00:21.7]} 27... Rc8 {[%clk
0:00:17.1]} 28. Qd6 {[%clk 0:00:17.8]} 28... Rg5 {[%clk 0:00:16.5]} 29. f3
{[%clk 0:00:16.9]} 29... Bxf3 {[%clk 0:00:13]} 30. Nxf3 {[%clk 0:00:14]} 30...
Qxf3 {[%clk 0:00:12.9]} 31. Qd4 {[%clk 0:00:11.4]} 31... Qg3 {[%clk 0:00:06.1]}
32. Kh1 {[%clk 0:00:07.2]} 32... Rd5 {[%clk 0:00:05.2]} 33. Qb4 {[%clk
0:00:02.7]} 33... Qe3 {[%clk 0:00:03.6]} 34. Rdc2 {[%clk 0:00:01.7]} 34... Rc6
{[%clk 0:00:03.3]} 0-1

[Event "*** Titled Tuesday Blitz"]
[Site "Chess.com"]
[Date "2021.03.16"]
[Round "1"]
[White "Zhigalko_Sergei"]
[Black "NiranjanNavalgund"]
[Result "0-1"]
[WhiteElo "2937"]
[BlackElo "2494"]
[TimeControl "180+1"]
[EndTime "10:07:28 PDT"]
[Termination "NiranjanNavalgund won by checkmate"]

1. e4 {[%clk 0:02:56.1]} 1... e5 {[%clk 0:02:59.9]} 2. Nf3 {[%clk 0:02:56.2]}
2... Nc6 {[%clk 0:03:00.2]} 3. Bc4 {[%clk 0:02:55.7]} 3... Nf6 {[%clk
0:02:59.3]} 4. d3 {[%clk 0:02:47.7]} 4... h6 {[%clk 0:02:58.8]} 5. O-O {[%clk
0:02:47.5]} 5... d6 {[%clk 0:02:58.6]} 6. c3 {[%clk 0:02:46.9]} 6... g5 {[%clk
0:02:58.9]} 7. b4 {[%clk 0:02:44.6]} 7... a6 {[%clk 0:02:54]} 8. a4 {[%clk
0:02:43.9]} 8... Bg7 {[%clk 0:02:53.5]} 9. Bb3 {[%clk 0:02:28.1]} 9... Ne7
{[%clk 0:02:46.7]} 10. Nbd2 {[%clk 0:02:25.7]} 10... Ng6 {[%clk 0:02:39.6]} 11.
Nc4 {[%clk 0:02:25.6]} 11... O-O {[%clk 0:02:36.9]} 12. Ne3 {[%clk 0:02:23.9]}
12... g4 {[%clk 0:02:17.6]} 13. Ne1 {[%clk 0:02:13.4]} 13... h5 {[%clk 0:02:02]}
14. g3 {[%clk 0:02:10.2]} 14... h4 {[%clk 0:01:48.9]} 15. Ra2 {[%clk 0:01:55.8]}
15... c6 {[%clk 0:01:40.2]} 16. Nf5 {[%clk 0:01:50.4]} 16... Bxf5 {[%clk
0:01:33]} 17. exf5 {[%clk 0:01:50.7]} 17... Ne7 {[%clk 0:01:28.7]} 18. f3 {[%clk
0:01:47]} 18... hxg3 {[%clk 0:01:23]} 19. fxg4 {[%clk 0:01:46.7]} 19... Nfd5
{[%clk 0:01:11.3]} 20. g5 {[%clk 0:01:23.5]} 20... Qb6+ {[%clk 0:01:08.3]} 21.
Kh1 {[%clk 0:01:18]} 21... Nxc3 {[%clk 0:01:02.8]} 22. Qh5 {[%clk 0:01:16.3]}
22... d5 {[%clk 0:00:55.4]} 23. Rg2 {[%clk 0:00:41.8]} 23... Qxb4 {[%clk
0:00:33.2]} 24. Rxg3 {[%clk 0:00:28.4]} 24... Nxf5 {[%clk 0:00:25.7]} 25. Rh3
{[%clk 0:00:21]} 25... Rfd8 {[%clk 0:00:21.1]} 26. Rxf5 {[%clk 0:00:15.2]} 26...
Rd7 {[%clk 0:00:19.4]} 27. g6 {[%clk 0:00:12.7]} 27... Qxb3 {[%clk 0:00:17.8]}
28. gxf7+ {[%clk 0:00:09.5]} 28... Kf8 {[%clk 0:00:17.9]} 29. Qh8+ {[%clk
0:00:06.9]} 29... Bxh8 {[%clk 0:00:17.4]} 30. Rxh8+ {[%clk 0:00:07.8]} 30... Kg7
{[%clk 0:00:16]} 31. Rxa8 {[%clk 0:00:03]} 31... Rxf7 {[%clk 0:00:16.1]} 32.
Rg5+ {[%clk 0:00:03.4]} 32... Kf6 {[%clk 0:00:16.2]} 33. Rg1 {[%clk 0:00:03]}
33... Qd1 {[%clk 0:00:15.9]} 34. Bg5+ {[%clk 0:00:02.7]} 34... Ke6 {[%clk
0:00:15.9]} 35. Re8+ {[%clk 0:00:03.3]} 35... Kd7 {[%clk 0:00:16.1]} 36. Rxe5
{[%clk 0:00:03.1]} 36... Ne2 {[%clk 0:00:14.8]} 37. Nf3 {[%clk 0:00:01.8]} 37...
Nxg1 {[%clk 0:00:14.7]} 38. Nxg1 {[%clk 0:00:01.8]} 38... Rf1 {[%clk 0:00:14.7]}
39. Be3 {[%clk 0:00:02.4]} 39... Qf3# {[%clk 0:00:14.8]} 0-1

[Event "*** Titled Tuesday Blitz"]
[Site "Chess.com"]
[Date "2021.03.16"]
[Round "1"]
[White "Evgeny81"]
[Black "PavelChernomordik"]
[Result "1-0"]
[WhiteElo "2754"]
[BlackElo "2403"]
[TimeControl "180+1"]
[EndTime "10:07:36 PDT"]
[Termination "Evgeny81 won on time"]

1. d4 {[%clk 0:02:59.9]} 1... g6 {[%clk 0:02:58.7]} 2. Nf3 {[%clk 0:02:58.9]}
2... Bg7 {[%clk 0:02:57.4]} 3. c4 {[%clk 0:02:59]} 3... d6 {[%clk 0:02:52.2]} 4.
g3 {[%clk 0:02:58.8]} 4... Nf6 {[%clk 0:02:50.6]} 5. Bg2 {[%clk 0:02:58.7]} 5...
O-O {[%clk 0:02:51]} 6. O-O {[%clk 0:02:59]} 6... c6 {[%clk 0:02:44.8]} 7. b3
{[%clk 0:02:57.7]} 7... a5 {[%clk 0:02:39.6]} 8. Bb2 {[%clk 0:02:53.8]} 8... Na6
{[%clk 0:02:38.6]} 9. Nc3 {[%clk 0:02:49.5]} 9... Rb8 {[%clk 0:02:31.2]} 10. e4
{[%clk 0:02:34]} 10... Nd7 {[%clk 0:02:26.5]} 11. Re1 {[%clk 0:02:26.1]} 11...
e5 {[%clk 0:02:16]} 12. Qd2 {[%clk 0:02:24.1]} 12... Nb4 {[%clk 0:01:59.8]} 13.
Rad1 {[%clk 0:02:08.8]} 13... Qe7 {[%clk 0:01:48.2]} 14. a3 {[%clk 0:02:03.1]}
14... Na6 {[%clk 0:01:47.3]} 15. Qc2 {[%clk 0:01:49]} 15... exd4 {[%clk
0:01:34.8]} 16. Nxd4 {[%clk 0:01:49.9]} 16... Ndc5 {[%clk 0:01:28]} 17. h3
{[%clk 0:01:37.7]} 17... Rd8 {[%clk 0:01:24]} 18. f4 {[%clk 0:01:35.7]} 18... h5
{[%clk 0:01:18.9]} 19. Nf3 {[%clk 0:01:31.8]} 19... Qc7 {[%clk 0:01:14.2]} 20.
Kh2 {[%clk 0:01:15.6]} 20... Qb6 {[%clk 0:01:09.7]} 21. Na4 {[%clk 0:01:11.3]}
21... Nxa4 {[%clk 0:01:06.4]} 22. Bxg7 {[%clk 0:01:12.2]} 22... Kxg7 {[%clk
0:01:03.6]} 23. bxa4 {[%clk 0:01:11.9]} 23... Nc5 {[%clk 0:00:55.6]} 24. f5
{[%clk 0:01:05.6]} 24... Qb3 {[%clk 0:00:49.1]} 25. Qd2 {[%clk 0:01:05.2]} 25...
Qxc4 {[%clk 0:00:43.4]} 26. f6+ {[%clk 0:01:01.5]} 26... Kh7 {[%clk 0:00:32.5]}
27. Ng5+ {[%clk 0:00:53.2]} 27... Kg8 {[%clk 0:00:31.9]} 28. e5 {[%clk
0:00:48.6]} 28... Bf5 {[%clk 0:00:22.8]} 29. exd6 {[%clk 0:00:43.9]} 29... Qc2
{[%clk 0:00:19.5]} 30. Qe3 {[%clk 0:00:34]} 30... Ne6 {[%clk 0:00:15]} 31. Nxe6
{[%clk 0:00:24.8]} 31... fxe6 {[%clk 0:00:13.3]} 32. d7 {[%clk 0:00:18.2]} 32...
Kh7 {[%clk 0:00:08.7]} 33. Rd2 {[%clk 0:00:12.8]} 33... Qxa4 {[%clk 0:00:07.6]}
34. g4 {[%clk 0:00:09.3]} 34... hxg4 {[%clk 0:00:06.2]} 35. Rd4 {[%clk
0:00:09.6]} 35... Qb5 {[%clk 0:00:03.6]} 36. hxg4 {[%clk 0:00:09.6]} 36... e5
{[%clk 0:00:02.2]} 37. Qh3+ {[%clk 0:00:07.5]} 37... Kg8 {[%clk 0:00:01.3]} 38.
Qh6 {[%clk 0:00:08]} 1-0